bitfinex/quotes_ETHUSD_20230116
["timestamp","ask_amount","ask_price","bid_price","bid_amount"]
[1673879911580,56.91342357,1547.1,1547.0,0.03747538]
[1673879912333,60.2914011,1547.1,1547.0,0.03747538]
[1673879912697,56.91342357,1547.1,1547.0,0.03747538]
[1673879916222,59.81859216,1547.1,1547.0,0.03747538]
[1673879916415,59.818536,1547.1,1547.0,0.03747538]
[1673879916927,56.91342357,1547.1,1547.0,0.03747538]
[1673879917416,51.91342357,1547.1,1547.0,0.03747538]
[1673879917581,54.81836138,1547.1,1547.0,0.03747538]
[1673879917788,54.81834349,1547.1,1547.0,0.03747538]
[1673879918792,49.06959403,1547.1,1547.0,0.03372785]
[1673879919314,49.06959403,1547.1,1547.0,0.02118512]
[1673879920946,42.60589403,1547.1,1547.0,0.02118512]
[1673879921153,33.23727411,1547.1,1547.0,0.02118512]
[1673879923096,36.14219403,1547.1,1547.0,0.02118512]
[1673879923261,41.04909243,1547.1,1547.0,0.02118512]
[1673879923673,47.51279243,1547.1,1547.0,0.02118512]
[1673879924214,41.04909243,1547.1,1547.0,0.02118512]
[1673879925370,57.24927921,1547.1,1547.0,0.02118512]
[1673879925581,54.34435929,1547.1,1547.0,0.02118512]
[1673879925958,57.24937937,1547.1,1547.0,0.02118512]
[1673879931608,54.34435929,1547.1,1547.0,0.01331345]
[1673879931828,57.72233682,1547.1,1547.0,0.01331345]
[1673879932996,58.20753682,1547.1,1547.0,0.01331345]
[1673879933617,63.20753682,1547.1,1547.0,0.01331345]
[1673879933774,63.20753682,1547.1,1547.0,0.00516297]
[1673879934448,71.20753682,1547.1,1547.0,0.00516297]
[1673879934676,67.82955929,1547.1,1547.0,0.00196827]
[1673879934890,67.34435929,1547.1,1547.0,0.00196827]
[1673879936648,68.59935929,1547.1,1547.0,0.00196827]
[1673879941182,72.59591746,1547.1,1547.0,0.00196827]
[1673879941567,1.14103173,1546.9,1546.8,0.06619143]
[1673879941781,26.71456184,1546.9,1546.8,0.06619143]
[1673879941993,30.51873164,1546.9,1546.8,0.06619143]
[1673879942181,30.6390183,1546.9,1546.8,0.06619143]
[1673879942514,40.5281183,1546.9,1546.8,0.06619143]
[1673879944973,38.38947441,1546.9,1546.8,0.06619143]
[1673879945581,42.38603258,1546.9,1546.8,0.06619143]
[1673879945798,25.63345326,1546.8,1546.7,0.06224847]
[1673879946028,52.7526267,1546.8,1546.7,0.06224847]
[1673879946210,59.5466267,1546.8,1546.7,0.06224847]
[1673879946384,74.95513568,1546.8,1546.6,0.06914919]
[1673879946588,21.86184572,1546.7,1546.6,0.06914919]
[1673879946837,40.32841351,1546.7,1546.6,0.06914919]
[1673879947060,49.81552021,1546.7,1546.4,0.08318731]
[1673879947323,18.06678678,1546.5,1546.4,0.08318731]
[1673879947463,49.82032929,1546.5,1546.3,0.07214993]
[1673879947677,12.286691,1546.4,1546.3,0.07214993]
[1673879947863,26.02760024,1546.4,1546.3,0.07214993]
[1673879948077,25.13138268,1546.4,1546.3,0.07214993]
[1673879948305,14.85881682,1546.4,1546.3,0.07214993]
[1673879948565,26.6884809,1546.4,1546.3,0.07214993]
[1673879948715,24.80876756,1546.4,1546.3,0.06451495]
[1673879948921,24.6884809,1546.4,1546.3,0.06451495]
[1673879949147,22.27176752,1546.4,1546.3,0.06451495]
[1673879949357,21.78823871,1546.4,1546.3,0.06451495]
[1673879949552,21.78823871,1546.4,1546.3,0.20524306]
[1673879949827,23.72101271,1546.4,1546.3,0.06451495]
[1673879949994,22.39205418,1546.4,1546.3,0.06451495]
[1673879950184,20.66484096,1546.4,1546.3,0.06451495]
[1673879950394,33.59810096,1546.4,1546.3,0.06451495]
[1673879950627,39.41174639,1546.4,1546.3,0.06451495]
[1673879950857,27.13147096,1546.4,1546.3,0.06451495]
[1673879951177,18.84114034,1546.4,1546.3,0.06451495]
[1673879951327,23.25421616,1546.4,1546.3,0.06451495]
[1673879951677,23.37450282,1546.4,1546.3,0.06451495]
[1673879952054,25.30777034,1546.4,1546.3,0.06451495]
[1673879952268,31.77440034,1546.4,1546.3,0.06451495]
[1673879952532,37.55902371,1546.4,1546.3,0.06451495]
[1673879952740,41.79943771,1546.4,1546.3,0.06451495]
[1673879952910,46.81820019,1546.4,1546.3,0.03846469]
[1673879953532,53.74890599,1546.4,1546.3,0.03846469]
[1673879953797,51.33219261,1546.4,1546.3,0.03846469]
[1673879954939,53.74890599,1546.4,1546.3,0.03846469]
[1673879955145,51.33219261,1546.4,1546.3,0.03846469]
[1673879956002,51.81820019,1546.4,1546.3,0.03846469]
[1673879956508,53.74820264,1546.4,1546.3,0.03846469]
[1673879956720,51.81820019,1546.4,1546.3,0.03846469]
[1673879957603,59.91348681,1546.4,1546.3,0.01376684]
[1673879957877,64.40148681,1546.4,1546.3,0.01376684]
[1673879958087,65.04782599,1546.4,1546.3,0.01376684]
[1673879958322,67.94804355,1546.4,1546.3,0.01376684]
[1673879959374,65.04782599,1546.4,1546.3,0.01376684]
[1673879959604,67.94804355,1546.4,1546.3,0.01376684]
[1673879962346,76.03604355,1546.4,1546.3,0.01376684]
[1673879962919,2.0,1546.3,1546.2,0.02973474]
[1673879963127,53.68491355,1546.3,1546.2,0.02973474]
[1673879963390,54.32337193,1546.3,1546.2,0.02973474]
[1673879963916,54.32337193,1546.3,1546.2,0.01925676]
[1673879964126,53.78191355,1546.3,1546.2,0.01925676]
[1673879964649,53.78191355,1546.3,1546.2,0.00691261]
[1673879965385,56.25080952,1546.3,1546.2,0.00691261]
[1673879965538,52.04148575,1546.3,1546.2,0.00691261]
[1673879966193,54.45136957,1546.3,1546.2,0.00691261]
[1673879966386,54.45134666,1546.3,1546.2,0.00691261]
[1673879966960,52.04146284,1546.3,1546.2,0.00691261]
[1673879967179,52.52391355,1546.3,1546.2,0.00691261]
[1673879967518,51.27291355,1546.3,1546.2,0.00691261]
[1673879968981,48.86302973,1546.3,1546.2,0.00691261]
[1673879969557,51.27320319,1546.3,1546.2,0.00691261]
[1673879971283,51.27416883,1546.3,1546.2,0.00691261]
[1673879971618,48.86302973,1546.3,1546.2,0.00248197]
[1673879972193,51.27416684,1546.3,1546.2,0.00248197]
[1673879972403,48.86302973,1546.3,1546.2,0.00248197]
[1673879973033,2.0,1546.2,1546.1,0.04466607]
[1673879973276,48.29380771,1546.2,1546.1,0.04466607]
[1673879973614,48.39080771,1546.2,1546.1,0.04466607]
[1673879973764,46.62509559,1546.2,1546.1,6.07e-06]
[1673879973983,50.2387981,1546.2,1546.1,6.07e-06]
[1673879974516,53.64909559,1546.2,1546.1,6.07e-06]
[1673879974726,58.16595892,1546.2,1546.1,6.07e-06]
[1673879974949,57.5182981,1546.2,1546.1,6.07e-06]
[1673879975147,47.34059559,1546.2,1546.1,6.07e-06]
[1673879975358,54.13459559,1546.2,1546.1,6.07e-06]
[1673879976766,47.34059559,1546.2,1546.1,6.07e-06]
[1673879976976,50.23562503,1546.2,1546.1,6.07e-06]
[1673879977149,47.34059559,1546.2,1546.1,6.07e-06]
[1673879977706,50.23677994,1546.2,1546.1,6.07e-06]
[1673879978495,0.00199393,1545.9,1545.5,8.06239204]
[1673879978706,5.68631446,1545.8,1545.5,10.29685728]
[1673879978967,18.72213446,1545.8,1545.5,2.32475728]
[1673879979127,17.17758785,1545.7,1545.5,0.09004383]
[1673879979335,17.27458785,1545.7,1545.5,0.09004383]
[1673879979546,9.83935678,1545.7,1545.5,0.09004383]
[1673879980402,17.27458785,1545.7,1545.5,0.09004383]
[1673879981478,18.72270446,1545.7,1545.5,0.14695383]
[1673879981718,19.78417549,1545.7,1545.5,0.09004383]
[1673879981872,10.80476785,1545.7,1545.5,0.09004383]
[1673879982087,10.80475785,1545.7,1545.5,0.09004383]
[1673879983484,7.53197107,1545.7,1545.5,0.09004383]
[1673879983662,1.06241107,1545.7,1545.5,6.56038383]
[1673879983873,0.96541107,1545.7,1545.5,6.56063204]
[1673879984083,0.96541107,1545.7,1545.5,8.64498828]
[1673879984285,2.51052768,1545.8,1545.5,8.64498828]
[1673879984537,7.51252161,1545.9,1545.6,2.057]
[1673879984755,7.51252161,1545.9,1545.6,14.99663]
[1673879984926,7.51052768,1545.9,1545.6,14.99687821]
[1673879985278,3.37893876,1545.8,1545.7,1.49968782]
[1673879985431,2.41505647,1545.8,1545.7,1.49968782]
[1673879985641,0.96693986,1545.8,1545.7,1.49968782]
[1673879985959,2.41505647,1545.8,1545.7,1.49968782]
[1673879986188,1.44811661,1545.8,1545.7,1.49968782]
[1673879987012,2.41513114,1545.8,1545.7,1.49968782]
[1673879987376,2.41511341,1545.8,1545.7,7.96924782]
[1673879987605,1.0639968,1545.9,1545.7,20.96516603]
[1673879987909,0.9669968,1545.9,1545.8,21.5039366]
[1673879988121,2.41511341,1546.0,1545.8,24.56073481]
[1673879988941,0.9669968,1546.0,1545.8,24.56073481]
[1673879989342,0.9669968,1545.9,1545.8,24.56073481]
[1673879989535,0.9669968,1546.0,1545.8,24.56073481]
[1673879989743,2.41511341,1546.1,1545.9,2.45607348]
[1673879989988,0.9669968,1546.1,1546.0,21.4049]
[1673879990217,0.9669968,1546.1,1546.0,24.50734821]
[1673879991047,2.41511341,1546.2,1546.0,24.50734821]
[1673879991235,0.9669968,1546.1,1546.0,24.50734821]
[1673879991440,2.41511341,1546.2,1546.0,27.21009038]
[1673879991695,2.41511341,1546.2,1546.0,27.21235976]
[1673879991906,0.9669968,1546.1,1546.0,27.21235976]
[1673879992408,0.9669968,1546.2,1546.0,27.21235976]
[1673879992678,0.9669968,1546.3,1546.1,3.0]
[1673879992950,0.9669968,1546.3,1546.2,26.16984]
[1673879993167,0.9669968,1546.3,1546.2,29.37474]
[1673879993325,2.51211341,1546.4,1546.2,29.37498821]
[1673879993535,0.9669968,1546.3,1546.2,29.27498821]
[1673879994370,2.41511341,1546.4,1546.2,32.54777499]
[1673879994579,1.0639968,1546.5,1546.3,6.2547775]
[1673879994789,0.9669968,1546.5,1546.4,19.39989]
[1673879995054,3.47593876,1546.7,1546.4,22.66163821]
[1673879995210,3.47593876,1546.7,1546.5,23.66479382]
[1673879995211,1.44811661,1546.6,1546.5,23.66479382]
[1673879995419,1.44811661,1546.7,1546.5,26.66504203]
[1673879995663,1.44811661,1546.7,1546.6,3.0]
[1673879995881,1.44811661,1546.7,1546.6,22.39737]
[1673879996107,1.44811661,1546.7,1546.6,22.39761821]
[1673879996266,1.44811661,1546.7,1546.6,25.71701741]
[1673879997553,1.44811661,1546.8,1546.6,25.71701741]
[1673879997991,1.44811661,1546.8,1546.7,21.39611]
[1673879998206,1.54511661,1546.9,1546.7,22.25674722]
[1673879998378,1.44811661,1546.9,1546.8,22.39485]
[1673879998588,1.44811661,1546.9,1546.8,25.56718393]
[1673879999216,3.37893876,1547.0,1546.9,2.0]
[1673879999426,2.61818441,1547.1,1546.9,2.0]
[1673879999427,3.58359549,1547.1,1547.0,19.39236]
[1673879999681,3.48659549,1547.1,1547.0,15.96930887]
[1673880000687,2.03847888,1547.1,1547.0,15.96930887]
[1673880000883,3.48378923,1547.1,1547.0,15.96930887]
[1673880001628,1.55296708,1547.1,1547.0,17.57263976]
[1673880001853,0.10765673,1547.1,1547.0,17.57263976]
[1673880002985,0.10765673,1547.1,1547.0,4.64439976]
[1673880003198,0.10765673,1547.1,1546.9,0.06424821]
[1673880003199,1.37665673,1547.1,1546.9,0.06424821]
[1673880003454,2.82196708,1547.1,1546.8,15.92963821]
[1673880003779,1.37665673,1547.1,1546.8,12.92963821]
[1673880004511,2.82196708,1547.1,1546.8,12.92963821]
[1673880004889,3.78381414,1547.1,1546.8,12.92963821]
[1673880005102,0.96184706,1547.0,1546.8,12.92963821]
[1673880005581,3.78381414,1547.1,1546.8,12.92963821]
[1673880005897,5.02225758,1547.1,1546.8,12.92963821]
[1673880006210,0.96184706,1547.0,1546.8,12.92963821]
[1673880006589,3.67394723,1547.1,1546.8,12.92963821]
[1673880006823,3.57694723,1547.1,1546.8,12.92963821]
[1673880007036,5.02225758,1547.1,1546.8,12.92963821]
[1673880007366,5.11925758,1547.1,1546.8,12.92963821]
[1673880008109,2.61181414,1547.1,1546.8,12.92963821]
[1673880008423,0.10765673,1547.1,1546.8,19.39458821]
[1673880009153,0.10765673,1547.1,1546.9,3.0]
[1673880009372,0.10765673,1547.1,1547.0,19.39236]
[1673880009677,0.10765673,1547.1,1547.0,21.63184421]
[1673880009999,0.10765673,1547.1,1547.0,12.92848821]
[1673880010170,0.10765673,1547.1,1547.0,0.00024821]
[1673880010513,0.10765673,1547.1,1546.9,9.46469821]
[1673880012899,0.96184706,1547.0,1546.9,0.00024821]
[1673880013108,3.34552269,1547.0,1546.7,6.46528821]
[1673880013323,9.80964269,1547.0,1546.7,6.46528821]
[1673880013565,9.90664269,1547.0,1546.7,0.00024821]
[1673880013777,9.90664269,1547.0,1546.6,0.00024821]
[1673880013778,2.0,1546.9,1546.6,0.00024821]
[1673880013985,2.0,1546.9,1546.5,6.52997]
[1673880013986,6.46495,1546.8,1546.5,0.00024821]
[1673880014203,6.46495,1546.8,1546.4,12.93498821]
[1673880014204,6.55995,1546.8,1546.4,12.93498821]
[1673880014457,0.097,1546.8,1546.4,19.39961821]
[1673880014728,9.37246695,1546.9,1546.4,19.39961821]
[1673880015784,15.83716695,1546.9,1546.5,9.46608]
[1673880015996,15.83716695,1546.9,1546.5,9.46632821]
[1673880017151,1.5837167,1546.8,1546.5,3.00024821]
[1673880017298,5.81835054,1546.8,1546.4,3.06424821]
[1673880017510,12.93091,1546.7,1546.4,3.0]
[1673880017791,15.55905805,1546.7,1546.4,3.0]
[1673880018625,15.55905805,1546.7,1546.3,0.06424821]
[1673880018626,26.25915189,1546.7,1546.3,0.06424821]
[1673880018939,26.25915189,1546.7,1546.2,0.00024821]
[1673880018940,14.93204,1546.6,1546.2,0.00024821]
[1673880019150,7.959484,1546.5,1546.1,6.55421805]
[1673880019295,8.056484,1546.5,1546.1,6.55421805]
[1673880019506,2.0,1546.4,1546.1,6.55421805]
[1673880019781,2.0,1546.4,1546.1,0.08670805]
[1673880019953,0.2,1546.3,1546.1,0.08645984]
[1673880020160,7.15258,1546.3,1546.1,0.08645984]
[1673880020508,7.24958,1546.3,1546.1,0.08645984]
[1673880020662,0.297,1546.3,1546.1,0.08645984]
[1673880020868,0.5824,1546.4,1546.1,0.08645984]
[1673880021136,0.4854,1546.4,1546.1,0.08645984]
[1673880021510,3.27278678,1546.3,1546.1,0.08645984]
[1673880024186,17.16878384,1546.3,1546.1,0.08645984]
[1673880024393,19.10036419,1546.2,1546.1,0.08645984]
[1673880024608,38.86011088,1546.2,1546.1,0.08645984]
[1673880024761,37.89826382,1546.2,1546.1,0.08645984]
[1673880025398,39.82908597,1546.2,1546.1,0.08645984]
[1673880025607,37.89826382,1546.2,1546.1,0.08645984]
[1673880027442,39.82908597,1546.2,1546.1,0.08645984]
[1673880027807,39.82908597,1546.2,1546.1,0.07725877]
[1673880027808,46.29654597,1546.2,1546.1,0.07725877]
[1673880028064,44.85123562,1546.2,1546.1,0.07725877]
[1673880028804,50.33394115,1546.2,1546.1,0.07725877]
[1673880028997,50.98028033,1546.2,1546.1,0.07725877]
[1673880029334,52.90952575,1546.2,1546.1,0.07725877]
[1673880029493,60.26379807,1546.2,1546.1,0.07725877]
[1673880030612,61.71033991,1546.2,1546.1,0.07725877]
[1673880031010,61.06400073,1546.2,1546.1,0.07725877]
[1673880031200,59.61745889,1546.2,1546.1,0.07725877]
[1673880031410,61.06390729,1546.2,1546.1,0.07725877]
[1673880031654,59.13466187,1546.2,1546.1,0.07725877]
[1673880032362,61.06390729,1546.2,1546.1,0.47039569]
[1673880032621,51.29610729,1546.2,1546.1,0.47039569]
[1673880033094,49.84965889,1546.2,1546.1,0.20739569]
[1673880033304,51.29543474,1546.2,1546.1,0.20739569]
[1673880033770,51.29501745,1546.2,1546.1,0.20739569]
[1673880034370,49.84965889,1546.2,1546.1,0.20739569]
[1673880034792,51.29502086,1546.2,1546.1,0.20739569]
[1673880035004,49.84965889,1546.2,1546.1,0.20739569]
[1673880035215,49.84965889,1546.2,1546.1,0.11119704]
[1673880035216,54.21028033,1546.2,1546.1,0.11119704]
[1673880035827,56.13638647,1546.2,1546.1,0.11119704]
[1673880036736,2.0,1546.1,1546.0,0.09181673]
[1673880036938,44.53721598,1546.1,1546.0,0.09181673]
[1673880037142,48.11971598,1546.1,1546.0,0.09181673]
[1673880037290,48.60123753,1546.1,1546.0,0.09181673]
[1673880037504,48.11952209,1546.1,1546.0,0.09181673]
[1673880037716,48.11952209,1546.1,1546.0,0.08219956]
[1673880039288,47.40770467,1546.1,1546.0,0.08219956]
[1673880039665,42.40770467,1546.1,1546.0,0.08219956]
[1673880040043,41.92220467,1546.1,1546.0,0.08219956]
[1673880040287,22.83766678,1546.1,1546.0,0.08219956]
[1673880040514,29.30554678,1546.1,1546.0,0.08219956]
[1673880040979,24.30554678,1546.1,1546.0,0.08219956]
[1673880042167,30.77342678,1546.1,1546.0,0.08219956]
[1673880042968,22.77342678,1546.1,1546.0,0.08219956]
[1673880043215,28.20409509,1546.1,1546.0,0.08219956]
[1673880043649,29.16666837,1546.1,1546.0,0.08219956]
[1673880043862,28.20409509,1546.1,1546.0,0.08219956]
[1673880044541,16.30554678,1546.1,1546.0,0.08219956]
[1673880044757,0.097,1546.1,1546.0,1.31919956]
[1673880044967,16.20022306,1546.2,1546.0,1.31919956]
[1673880045218,19.47300984,1546.2,1546.0,7.78744956]
[1673880045426,16.20022306,1546.2,1546.0,7.78769777]
[1673880045761,16.20022306,1546.2,1546.0,9.86658055]
[1673880047906,16.20022306,1546.2,1546.0,3.39833055]
[1673880048116,17.16279634,1546.2,1546.0,0.08219956]
[1673880048327,23.63028634,1546.2,1546.0,0.08219956]
[1673880048584,3.27278678,1546.1,1546.0,0.08219956]
[1673880048756,11.74066678,1546.1,1546.0,0.08219956]
[1673880048976,9.83766678,1546.1,1546.0,0.08219956]
[1673880049313,16.42852344,1546.1,1546.0,0.08219956]
[1673880049700,22.89640344,1546.1,1546.0,0.08219956]
[1673880050377,30.81084602,1546.1,1546.0,0.08219956]
[1673880050608,29.84610086,1546.1,1546.0,0.08219956]
[1673880050743,29.84610086,1546.1,1546.0,0.07361181]
[1673880050744,33.87318316,1546.1,1546.0,0.07361181]
[1673880050952,41.22684398,1546.1,1546.0,0.07361181]
[1673880051640,39.30073784,1546.1,1546.0,0.07361181]
[1673880052231,37.53354934,1546.1,1546.0,0.07361181]
[1673880052424,42.53354934,1546.1,1546.0,0.07361181]
[1673880052844,42.76354934,1546.1,1546.0,0.07361181]
[1673880053144,45.65978256,1546.1,1546.0,0.07361181]
[1673880053324,45.65978256,1546.1,1546.0,0.03955626]
[1673880054318,45.65978256,1546.1,1546.0,0.41318331]
[1673880055045,42.53354934,1546.1,1546.0,0.41318331]
[1673880055260,44.94897946,1546.1,1546.0,0.41318331]
[1673880055525,41.88721016,1546.1,1546.0,0.41318331]
[1673880055891,44.78344338,1546.1,1546.0,0.41318331]
[1673880056101,41.88721016,1546.1,1546.0,0.41318331]
[1673880056836,40.38721016,1546.1,1546.0,0.41318331]
[1673880057473,43.28344338,1546.1,1546.0,0.41318331]
[1673880059569,40.38721016,1546.1,1546.0,0.41318331]
[1673880060049,43.29103021,1546.1,1546.0,0.41318331]
[1673880060218,40.38721016,1546.1,1546.0,0.41318331]
[1673880060644,40.38721016,1546.1,1546.0,0.3702953]
[1673880061058,54.39144679,1546.1,1546.0,0.19926837]
[1673880061274,54.87694679,1546.1,1546.0,0.19926837]
[1673880062255,57.87694679,1546.1,1546.0,0.19926837]
[1673880063464,54.49324428,1546.1,1546.0,0.19926837]
[1673880064515,57.88284238,1546.1,1546.0,0.19926837]
[1673880065292,54.49324428,1546.1,1546.0,0.19926837]
[1673880065677,57.88273039,1546.1,1546.0,0.19926837]
[1673880066740,57.39723039,1546.1,1546.0,0.19926837]
[1673880067089,46.52119627,1546.1,1546.0,0.19926837]
[1673880067721,47.00669627,1546.1,1546.0,0.19926837]
[1673880067912,46.52119627,1546.1,1546.0,0.19926837]
[1673880068119,46.29119627,1546.1,1546.0,0.19926837]
[1673880069030,42.90171016,1546.1,1546.0,0.19926837]
[1673880069507,46.29119627,1546.1,1546.0,0.19926837]
[1673880069816,42.90171016,1546.1,1546.0,0.19926837]
[1673880070189,45.71121246,1546.1,1546.0,0.19926837]
[1673880070411,42.80646039,1546.1,1546.0,0.19926837]
[1673880070725,36.33858039,1546.1,1546.0,0.1793203]
[1673880071131,32.21029701,1546.1,1546.0,0.1793203]
[1673880071347,14.46963023,1546.1,1546.0,1.5543203]
[1673880071595,2.51754843,1546.1,1546.0,1.5543203]
[1673880071765,2.42054843,1546.1,1546.0,1.5543203]
[1673880071980,3.27278678,1546.1,1546.0,0.1793203]
[1673880072191,6.17753701,1546.1,1546.0,0.1793203]
[1673880072448,14.98019302,1546.1,1546.0,0.1793203]
[1673880072669,21.44807302,1546.1,1546.0,0.1793203]
[1673880072817,27.91595302,1546.1,1546.0,0.1793203]
[1673880073308,25.01120279,1546.1,1546.0,0.1793203]
[1673880073459,27.91615708,1546.1,1546.0,0.1793203]
[1673880074254,27.91612391,1546.1,1546.0,0.1793203]
[1673880074408,36.4006889,1546.1,1546.0,0.0968422]
[1673880074603,38.01120279,1546.1,1546.0,0.0968422]
[1673880074813,38.72670279,1546.1,1546.0,0.0968422]
[1673880075024,49.4786518,1546.1,1546.0,0.0968422]
[1673880075292,58.7986518,1546.1,1546.0,0.0968422]
[1673880075476,55.05101444,1546.1,1546.0,0.0968422]
[1673880075928,65.92682064,1546.1,1546.0,0.0968422]
[1673880076719,65.67015104,1546.1,1546.0,0.0968422]
[1673880076983,66.71837879,1546.1,1546.0,0.0968422]
[1673880077199,61.92250899,1546.1,1546.0,0.0968422]
[1673880077346,77.26001825,1546.1,1546.0,0.0968422]
[1673880077562,78.55401825,1546.1,1546.0,4.22e-05]
[1673880077785,2.0,1546.0,1545.5,0.09004383]
[1673880078001,2.90500851,1545.7,1545.5,0.09004383]
[1673880078207,12.16359448,1545.6,1545.5,0.09004383]
[1673880078449,12.26059448,1545.6,1545.5,0.09004383]
[1673880080139,2.5178377,1545.6,1545.5,0.09004383]
[1673880080293,1.93579819,1545.6,1545.5,0.09004383]
[1673880081143,3.38948268,1545.6,1545.5,0.09004383]
[1673880081367,3.38748268,1545.6,1545.5,0.09004383]
[1673880082137,1.45168449,1545.6,1545.5,1.46504383]
[1673880082354,1.45168449,1545.6,1545.5,1.93359225]
[1673880082499,2.41940934,1545.6,1545.5,1.93359225]
[1673880082718,1.45168449,1545.6,1545.5,1.93359225]
[1673880083027,2.41942748,1545.6,1545.5,1.93359225]
[1673880083262,1.45168449,1545.6,1545.5,8.40398225]
[1673880083608,1.45168449,1545.6,1545.5,8.40423046]
[1673880083825,2.41940664,1545.6,1545.5,8.40423046]
[1673880084823,1.45168449,1545.6,1545.5,8.40423046]
[1673880085359,2.41946554,1545.6,1545.5,8.40423046]
[1673880085719,1.45168449,1545.6,1545.5,8.40423046]
[1673880086340,1.45168449,1545.6,1545.5,14.87437225]
[1673880086341,1.45368449,1545.6,1545.5,14.87437225]
[1673880086671,0.96826019,1545.6,1545.5,14.87462046]
[1673880087021,0.96826019,1545.6,1545.5,21.34501046]
[1673880087709,0.96826019,1545.6,1545.5,8.40423046]
[1673880087911,2.41994468,1545.6,1545.5,14.87462046]
[1673880088822,1.45168449,1545.6,1545.5,14.87462046]
[1673880089457,1.93579819,1545.6,1545.5,0.55884046]
[1673880089667,2.4208377,1545.6,1545.5,0.09004383]
[1673880090062,4.35909854,1545.6,1545.5,0.09004383]
[1673880090277,1.93826084,1545.6,1545.5,0.09004383]
[1673880090751,4.35909854,1545.6,1545.5,0.09004383]
[1673880091432,8.8908077,1545.6,1545.5,0.09004383]
[1673880091599,15.4577777,1545.6,1545.5,0.09004383]
[1673880091818,15.52017862,1545.6,1545.5,0.09004383]
[1673880092024,30.16794391,1545.6,1545.5,0.09004383]
[1673880092687,28.16794391,1545.6,1545.5,0.09004383]
[1673880093897,25.2629354,1545.6,1545.5,0.09004383]
[1673880094949,21.21505653,1545.6,1545.5,0.09004383]
[1673880095897,27.68502653,1545.6,1545.5,0.09004383]
[1673880098632,2.03452678,1545.6,1545.5,2.73404383]
[1673880098831,1.93752678,1545.6,1545.5,2.73404383]
[1673880099042,3.39062869,1545.6,1545.5,2.73404383]
[1673880099256,8.40749678,1545.6,1545.5,0.09004383]
[1673880099476,17.39655791,1545.6,1545.5,0.09004383]
[1673880100674,10.92658791,1545.6,1545.5,0.09004383]
[1673880101349,10.92658791,1545.6,1545.5,0.08755088]
[1673880103027,17.39669886,1545.6,1545.5,0.08755088]
[1673880103238,15.45903113,1545.6,1545.5,0.08755088]
[1673880103702,17.39671006,1545.6,1545.5,0.08755088]
[1673880104826,21.44458893,1545.6,1545.5,0.08755088]
[1673880105035,21.44458893,1545.6,1545.5,1.46255088]
[1673880105286,21.44458893,1545.6,1545.5,0.08755088]
[1673880105499,14.97461893,1545.6,1545.5,0.08755088]
[1673880106030,8.50464893,1545.6,1545.5,0.08755088]
[1673880107922,14.97461893,1545.6,1545.5,0.08755088]
[1673880108235,17.39671006,1545.6,1545.5,0.08755088]
[1673880109075,23.86668006,1545.6,1545.5,0.08755088]
[1673880109394,28.28399592,1545.6,1545.5,0.08755088]
[1673880109611,25.86190479,1545.6,1545.5,0.08755088]
[1673880110282,28.7669133,1545.6,1545.5,0.08755088]
[1673880111552,29.2526133,1545.6,1545.5,0.08755088]
[1673880112912,28.7669133,1545.6,1545.5,0.08755088]
[1673880113807,25.86190479,1545.6,1545.5,0.08755088]
[1673880114228,28.7669133,1545.6,1545.5,0.08755088]
[1673880115331,25.86190479,1545.6,1545.5,0.08755088]
[1673880117217,28.7669133,1545.6,1545.5,0.08755088]
[1673880118198,29.2526133,1545.6,1545.5,0.08755088]
[1673880118390,28.7669133,1545.6,1545.5,0.08755088]
[1673880119060,25.86190479,1545.6,1545.5,0.08755088]
[1673880119436,26.34760479,1545.6,1545.5,0.08755088]
[1673880119893,29.25689603,1545.6,1545.5,0.08755088]
[1673880124158,19.21901802,1545.6,1545.5,0.08755088]
[1673880124400,25.68898802,1545.6,1545.5,0.08755088]
[1673880125629,25.68898802,1545.6,1545.5,0.0840175]
[1673880129217,16.30972678,1545.6,1545.5,0.0840175]
[1673880129416,16.30972678,1545.6,1545.5,1.4590175]
[1673880129870,18.73456583,1545.6,1545.5,0.0840175]
[1673880130199,2.52183905,1545.6,1545.5,1.4590175]
[1673880130421,4.36462412,1545.6,1545.5,8.19735328]
[1673880130568,4.36462412,1545.6,1545.5,8.19760149]
[1673880131556,1.93978507,1545.6,1545.5,8.19760149]
[1673880133348,3.3944093,1545.6,1545.5,10.19760149]
[1673880133561,2.42403172,1545.6,1545.5,23.13838149]
[1673880133945,0.96940749,1545.6,1545.5,23.13838149]
[1673880134454,0.96940749,1545.6,1545.5,21.13838149]
[1673880134701,3.3944093,1545.6,1545.5,14.66799149]
[1673880135356,1.93978507,1545.6,1545.5,14.66799149]
[1673880135671,1.45414805,1545.6,1545.5,21.13838149]
[1673880135823,2.42344478,1545.6,1545.5,21.13838149]
[1673880136482,2.42540598,1545.6,1545.5,21.13813328]
[1673880136697,2.42340598,1545.6,1545.5,24.13838149]
[1673880137173,0.96925793,1545.6,1545.5,24.13838149]
[1673880137551,2.42340598,1545.7,1545.5,24.13838149]
[1673880137745,2.42340598,1545.7,1545.6,21.82374815]
[1673880137979,2.42340598,1545.7,1545.6,21.82399636]
[1673880139026,0.96925793,1545.7,1545.6,21.82399636]
[1673880139239,1.06625793,1545.8,1545.7,2.0]
[1673880139433,1.06625793,1545.8,1545.7,7.68239964]
[1673880139434,0.96925793,1545.8,1545.7,7.68239964]
[1673880139649,0.96925793,1545.9,1545.7,27.09132785]
[1673880141895,0.96925793,1545.9,1545.7,25.09132785]
[1673880142108,0.96925793,1545.8,1545.7,25.09132785]
[1673880143703,0.96925793,1545.8,1545.7,0.00024821]
[1673880143704,3.39393312,1545.8,1545.7,0.00024821]
[1673880143948,3.39393312,1545.8,1545.6,6.47021821]
[1673880144271,0.96752679,1545.7,1545.6,6.47021821]
[1673880145263,0.002,1545.7,1545.6,12.93994]
[1673880145469,0.96752679,1545.8,1545.6,19.41015821]
[1673880145995,2.42167484,1545.8,1545.6,19.41015821]
[1673880146276,0.96752679,1545.8,1545.6,19.41015821]
[1673880146838,0.96752679,1545.8,1545.6,12.94018821]
[1673880147376,0.96752679,1545.7,1545.6,12.94018821]
[1673880147985,0.96752679,1545.7,1545.6,6.47021821]
[1673880152040,2.42167484,1545.7,1545.6,6.47021821]
[1673880152825,2.42167484,1545.7,1545.6,6.46801689]
[1673880153455,2.42167484,1545.7,1545.6,6.80707338]
[1673880154085,0.96752679,1545.7,1545.6,6.80707338]
[1673880154294,1.55114805,1545.8,1545.6,6.80707338]
[1673880154295,0.96752679,1545.8,1545.6,6.80707338]
[1673880154508,0.96752679,1545.8,1545.6,21.73654347]
[1673880154766,2.42167484,1545.8,1545.6,21.73654347]
[1673880156406,0.96752679,1545.8,1545.6,21.73654347]
[1673880156644,2.42167484,1545.8,1545.6,21.73654347]
[1673880157068,0.96752679,1545.8,1545.6,21.73654347]
[1673880157255,2.42167484,1545.8,1545.7,2.17365435]
[1673880157467,0.96752679,1545.8,1545.7,6.46956]
[1673880157680,1.45414805,1545.8,1545.7,0.00024821]
[1673880157902,1.45414805,1545.8,1545.6,6.80707338]
[1673880158082,0.96751592,1545.7,1545.6,6.80707338]
[1673880158335,1.45414805,1545.7,1545.6,0.3393047]
[1673880158658,1.45414805,1545.7,1545.6,0.33905649]